Workbook

Sheet summary (auto)
B2: 3 view test case
C4: video 0 | D4: video 1 | E4: video 2 | F4: video PSNR / video bitrate | G4: video PSNR / total bitrate | H4: synth PSNR / total bitrate | I4: enc time | J4: dec time | K4: ren time
B5: ='experimental data'!B3 -> Balloons | C5: ='experimental data'!U3 -> 0 | D5: ='experimental data'!U7 -> 0.002537880126 | E5: ='experimental data'!U11 -> -0.0002345858318 | F5: ='experimental data'!U434 -> 0.0002150931163 | G5: =bdrate('experimental data'!E450:E453,'experimental data'!F434:F437,'experimental data'!M450:M453,'experimental data'!N434:N437) -> 0.0001306582829 | H5: ='experimental data'!U442 -> -0.0005093822298 | I5: ='experimental data'!Y51 -> 0.9958950233 | J5: ='experimental data'!Z51 -> 0.976936247 | K5: ='experimental data'!AA51 -> 1.008283158
B6: ='experimental data'!B55 -> Kendo | C6: ='experimental data'!U55 -> 0 | D6: ='experimental data'!U59 -> 0.001208241843 | E6: ='experimental data'!U63 -> 0.001507510025 | F6: ='experimental data'!U458 -> 0.000456240643 | G6: =bdrate('experimental data'!E474:E477,'experimental data'!F458:F461,'experimental data'!M474:M477,'experimental data'!N458:N461) -> 0.000268341506 | H6: ='experimental data'!U466 -> -0.0002153683257 | I6: ='experimental data'!Y103 -> 1.000067797 | J6: ='experimental data'!Z103 -> 1.022321679 | K6: ='experimental data'!AA103 -> 1.012048448
B7: ='experimental data'!B107 -> Newspaper_CC | C7: ='experimental data'!U107 -> 0 | D7: ='experimental data'!U111 -> 0.001694491577 | E7: ='experimental data'!U115 -> 0.0001013367453 | F7: ='experimental data'!U482 -> 0.0003445318411 | G7: =bdrate('experimental data'!E498:E501,'experimental data'!F482:F485,'experimental data'!M498:M501,'experimental data'!N482:N485) -> 0.0004237010312 | H7: ='experimental data'!U490 -> 0.0008189568042 | I7: ='experimental data'!Y155 -> 1.001343637 | J7: ='experimental data'!Z155 -> 1.002743793 | K7: ='experimental data'!AA155 -> 0.9963457651
B8: ='experimental data'!B159 -> GT_Fly | C8: ='experimental data'!U159 -> 0 | D8: ='experimental data'!U163 -> 0.0009909034779 | E8: ='experimental data'!U167 -> 0.001789313703 | F8: ='experimental data'!U506 -> 0.0003840756337 | G8: =bdrate('experimental data'!E522:E525,'experimental data'!F506:F509,'experimental data'!M522:M525,'experimental data'!N506:N509) -> 0.0003002179245 | H8: ='experimental data'!U514 -> -0.0004217339464 | I8: ='experimental data'!Y207 -> 0.9974889657 | J8: ='experimental data'!Z207 -> 1.008392869 | K8: ='experimental data'!AA207 -> 1.004082947
B9: ='experimental data'!B211 -> Poznan_Hall2 | C9: ='experimental data'!U211 -> 0 | D9: ='experimental data'!U215 -> 0.0008162622086 | E9: ='experimental data'!U219 -> 0.0009515493622 | F9: ='experimental data'!U530 -> 0.0002177900419 | G9: =bdrate('experimental data'!E546:E549,'experimental data'!F530:F533,'experimental data'!M546:M549,'experimental data'!N530:N533) -> -4.924929735e-06 | H9: ='experimental data'!U538 -> 0.0009945993684 | I9: ='experimental data'!Y259 -> 1.000911128 | J9: ='experimental data'!Z259 -> 0.9989924531 | K9: ='experimental data'!AA259 -> 1.004274156
B10: ='experimental data'!B263 -> Poznan_Street | C10: ='experimental data'!U263 -> 0 | D10: ='experimental data'!U267 -> -0.002085889218 | E10: ='experimental data'!U271 -> 0.0005027258147 | F10: ='experimental data'!U554 -> -0.000100511508 | G10: =bdrate('experimental data'!E570:E573,'experimental data'!F554:F557,'experimental data'!M570:M573,'experimental data'!N554:N557) -> 3.888402637e-05 | H10: ='experimental data'!U562 -> -0.0001549249569 | I10: ='experimental data'!Y311 -> 0.9993317403 | J10: ='experimental data'!Z311 -> 1.022231784 | K10: ='experimental data'!AA311 -> 1.000435231
B11: ='experimental data'!B315 -> Undo_Dancer | C11: ='experimental data'!U315 -> 0 | D11: ='experimental data'!U319 -> 0.0004186038842 | E11: ='experimental data'!U323 -> 0.0003785378193 | F11: ='experimental data'!U578 -> 0.0002963710051 | G11: =bdrate('experimental data'!E594:E597,'experimental data'!F578:F581,'experimental data'!M594:M597,'experimental data'!N578:N581) -> 0.0002733922666 | H11: ='experimental data'!U586 -> -0.0001327828676 | I11: ='experimental data'!Y363 -> 0.9970914332 | J11: ='experimental data'!Z363 -> 0.9970818518 | K11: ='experimental data'!AA363 -> 0.9991909777
B12: ='experimental data'!B598 -> Shark | C12: ='experimental data'!U367 -> 0 | D12: ='experimental data'!U371 -> 0.0007369915411 | E12: ='experimental data'!U375 -> -0.0002035908464 | F12: ='experimental data'!U602 -> 0.0002158337591 | G12: =bdrate('experimental data'!E618:E621,'experimental data'!F602:F605,'experimental data'!M618:M621,'experimental data'!N602:N605) -> 0.00019078672 | H12: ='experimental data'!U610 -> -3.006161477e-06 | I12: ='experimental data'!Y415 -> 0.9983474037 | J12: ='experimental data'!Z415 -> 0.9904374848 | K12: ='experimental data'!AA415 -> 1.004457402
B13: 1024x768 | C13: =AVERAGE(C5:C7) -> 0 | D13: 0.001813537849 | E13: 0.0004580869794 | F13: 0.0003386218668 | G13: 0.0002742336067 | H13: 3.140208288e-05 | I13: 0.9991021525 | J13: 1.000667239 | K13: 1.005559124
B14: 1920x1088 | C14: =AVERAGE(C8:C12) -> 0 | D14: =AVERAGE(D8:D12) -> 0.0001753743788 | E14: 0.0006837071707 | F14: 0.0002027117864 | G14: 0.0001596712016 | H14: 5.643028722e-05 | I14: 0.9986341343 | J14: 1.003427289 | K14: 1.002488143
B15: average | C15: =AVERAGE(C5:C12) -> 0 | D15: =AVERAGE(D5:D12) -> 0.00078968568 | E15: 0.0005990995989 | F15: 0.0002536780665 | G15: 0.0002026321035 | H15: 4.70447106e-05 | I15: =AVERAGE(I5:I12) -> 0.9988096411 | J15: 1.00239227 | K15: 1.003639761
B18: 2 view test case (extracted from 3 view data)
C20: video 0 | D20: video 1 | E20: video PSNR / video bitrate | F20: video PSNR / total bitrate | G20: synth PSNR / total bitrate
B21: ='experimental data'!B3 -> Balloons | C21: ='experimental data'!U3 -> 0 | D21: ='experimental data'!U7 -> 0.002537880126 | E21: ='experimental data'!U430 -> 0.0004758782003 | F21: =bdrate('experimental data'!E446:E449,'experimental data'!F430:F433,'experimental data'!M446:M449,'experimental data'!N430:N433) -> 0.0003217004427 | G21: ='experimental data'!U438 -> -0.0006242470519
B22: ='experimental data'!B55 -> Kendo | C22: ='experimental data'!U55 -> 0 | D22: ='experimental data'!U59 -> 0.001208241843 | E22: ='experimental data'!U454 -> 0.0002861128081 | F22: =bdrate('experimental data'!E470:E473,'experimental data'!F454:F457,'experimental data'!M470:M473,'experimental data'!N454:N457) -> 0.0001982744905 | G22: ='experimental data'!U462 -> 5.553627941e-05
B23: ='experimental data'!B107 -> Newspaper_CC | C23: ='experimental data'!U107 -> 0 | D23: ='experimental data'!U111 -> 0.001694491577 | E23: ='experimental data'!U478 -> 0.0003923765708 | F23: =bdrate('experimental data'!E494:E497,'experimental data'!F478:F481,'experimental data'!M494:M497,'experimental data'!N478:N481) -> 0.0004042194663 | G23: ='experimental data'!U486 -> 0.0008903562038
B24: ='experimental data'!B159 -> GT_Fly | C24: ='experimental data'!U159 -> 0 | D24: ='experimental data'!U163 -> 0.0009909034779 | E24: ='experimental data'!U502 -> 0.0002287817075 | F24: =bdrate('experimental data'!E518:E521,'experimental data'!F502:F505,'experimental data'!M518:M521,'experimental data'!N502:N505) -> 0.0001816511044 | G24: ='experimental data'!U510 -> -0.0003406004872
B25: ='experimental data'!B211 -> Poznan_Hall2 | C25: ='experimental data'!U211 -> 0 | D25: ='experimental data'!U215 -> 0.0008162622086 | E25: ='experimental data'!U526 -> 0.0002145536319 | F25: =bdrate('experimental data'!E542:E545,'experimental data'!F526:F529,'experimental data'!M542:M545,'experimental data'!N526:N529) -> 0.0001586608362 | G25: ='experimental data'!U534 -> 0.001091365417
B26: ='experimental data'!B263 -> Poznan_Street | C26: ='experimental data'!U263 -> 0 | D26: ='experimental data'!U267 -> -0.002085889218 | E26: ='experimental data'!U550 -> -0.0003364862846 | F26: =bdrate('experimental data'!E566:E569,'experimental data'!F550:F553,'experimental data'!M566:M569,'experimental data'!N550:N553) -> -0.0003105362348 | G26: ='experimental data'!U558 -> -0.0005139213722
B27: ='experimental data'!B315 -> Undo_Dancer | C27: ='experimental data'!U315 -> 0 | D27: ='experimental data'!U319 -> 0.0004186038842 | E27: ='experimental data'!U574 -> 0.0002025059087 | F27: =bdrate('experimental data'!E590:E593,'experimental data'!F574:F577,'experimental data'!M590:M593,'experimental data'!N574:N577) -> 0.0001888471692 | G27: ='experimental data'!U582 -> 0.0002241245768
B28: ='experimental data'!B598 -> Shark | C28: ='experimental data'!U367 -> 0 | D28: ='experimental data'!U371 -> 0.0007369915411 | E28: ='experimental data'!U598 -> 0.0002051551279 | F28: =bdrate('experimental data'!E614:E617,'experimental data'!F598:F601,'experimental data'!M614:M617,'experimental data'!N598:N601) -> 0.0001299053155 | G28: ='experimental data'!U606 -> 0.0001815356686
B29: 1024x768 | C29: =AVERAGE(C21:C23) -> 0 | D29: =AVERAGE(D21:D23) -> 0.001813537849 | E29: =AVERAGE(E21:E23) -> 0.000384789193 | F29: =AVERAGE(F21:F23) -> 0.0003080647998 | G29: =AVERAGE(G21:G23) -> 0.0001072151438
B30: 1920x1088 | C30: =AVERAGE(C24:C28) -> 0 | D30: =AVERAGE(D24:D28) -> 0.0001753743788 | E30: =AVERAGE(E24:E28) -> 0.0001029020183 | F30: =AVERAGE(F24:F28) -> 6.970563809e-05 | G30: =AVERAGE(G24:G28) -> 0.0001285007607
B31: average | C31: =AVERAGE(C21:C28) -> 0 | D31: =AVERAGE(D21:D28) -> 0.00078968568 | E31: =AVERAGE(E21:E28) -> 0.0002086097088 | F31: =AVERAGE(F21:F28) -> 0.0001590903237 | G31: =AVERAGE(G21:G28) -> 0.0001205186543

Sheet experimental data
E1: Reference | M1: Tested | U1: BD-rate (piecewise cubic) | Y1: Time ratio | AC1: Compared
A2: Class | B2: Sequence | C2: component | D2: QPISlice(V0) | E2: kbps | F2: Y-PSNR | G2: U-PSNR | H2: V-PSNR | I2: Enc T [s] | J2: Dec T [s] | K2: Ren T [s] | M2: kbps | N2: Y-PSNR | O2: U-PSNR | P2: V-PSNR | Q2: Enc T [s] | R2: Dec T [s] | S2: Ren T [s] | U2: Y | V2: U | W2: V | Y2: Enc | Z2: Dec | AA2: Ren | AC2: kbps | AD2: Y-PSNR | AE2: U-PSNR | AF2: V-PSNR | AG2: Enc T [s] | AH2: Dec T [s] | AI2: Ren T [s]
A3: 1024x768 | B3: Balloons | C3: video 0 | D3: 25 | E3: 878.0576 | F3: 43.0953 | G3: 43.406 | H3: 43.9746 | M3: 878.0576 | N3: 43.0953 | O3: 43.406 | P3: 43.9746 | U3: =bdrate($E3:$E6,F3:F6,$M3:$M6,N3:N6) -> 0 | V3: =bdrate($E3:$E6,G3:G6,$M3:$M6,O3:O6) -> 0 | W3: =bdrate($E3:$E6,H3:H6,$M3:$M6,P3:P6) -> 0 | AC3: =E3 -M3 -> 0 | AD3: 0 | AE3: 0 | AF3: 0
D4: 30 | E4: 481.552 | F4: 41.0461 | G4: 42.1359 | H4: 42.3375 | M4: 481.552 | N4: 41.0461 | O4: 42.1359 | P4: 42.3375 | AC4: 0 | AD4: 0 | AE4: 0 | AF4: 0
D5: 35 | E5: 277.3152 | F5: 38.4594 | G5: 40.6512 | H5: 40.5269 | M5: 277.3152 | N5: 38.4594 | O5: 40.6512 | P5: 40.5269 | AC5: 0 | AD5: 0 | AE5: 0 | AF5: 0
D6: 40 | E6: 167.9208 | F6: 35.64 | G6: 39.5666 | H6: 39.2236 | M6: 167.9208 | N6: 35.64 | O6: 39.5666 | P6: 39.2236 | AC6: 0 | AD6: 0 | AE6: 0 | AF6: 0
C7: video 1 | D7: 25 | E7: 268.5488 | F7: 42.2198 | G7: 43.1065 | H7: 43.132 | M7: 268.9432 | N7: 42.2197 | O7: 43.1003 | P7: 43.1281 | U7: =bdrate($E7:$E10,F7:F10,$M7:$M10,N7:N10) -> 0.002537880126 | V7: =bdrate($E7:$E10,G7:G10,$M7:$M10,O7:O10) -> 0.003582757229 | W7: =bdrate($E7:$E10,H7:H10,$M7:$M10,P7:P10) -> 0.003453434938 | AC7: -0.3944 | AD7: 0.0001 | AE7: 0.0062 | AF7: 0.0039
D8: 30 | E8: 122.0592 | F8: 39.9021 | G8: 41.8236 | H8: 41.5375 | M8: 122.5416 | N8: 39.9048 | O8: 41.8191 | P8: 41.5384 | AC8: -0.4824 | AD8: -0.0027 | AE8: 0.0045 | AF8: -0.0009
D9: 35 | E9: 63.7928 | F9: 37.3123 | G9: 40.5625 | H9: 40.0602 | M9: 63.8128 | N9: 37.3085 | O9: 40.5649 | P9: 40.0547 | AC9: -0.02 | AD9: 0.0038 | AE9: -0.0024 | AF9: 0.0055
D10: 40 | E10: 33.5616 | F10: 34.5933 | G10: 39.4753 | H10: 38.8156 | M10: 33.7904 | N10: 34.5982 | O10: 39.4776 | P10: 38.8192 | AC10: -0.2288 | AD10: -0.0049 | AE10: -0.0023 | AF10: -0.0036
C11: video 2 | D11: 25 | E11: 298.0488 | F11: 41.8934 | G11: 42.5451 | H11: 42.8722 | M11: 298.0232 | N11: 41.8942 | O11: 42.5408 | P11: 42.8644 | U11: =bdrate($E11:$E14,F11:F14,$M11:$M14,N11:N14) -> -0.0002345858318 | V11: =bdrate($E11:$E14,G11:G14,$M11:$M14,O11:O14) -> 0.001250132191 | W11: =bdrate($E11:$E14,H11:H14,$M11:$M14,P11:P14) -> 0.001484457606 | AC11: 0.0256 | AD11: -0.0008 | AE11: 0.0043 | AF11: 0.0078
D12: 30 | E12: 135.132 | F12: 39.6615 | G12: 41.2143 | H12: 41.3075 | M12: 135.14 | N12: 39.6635 | O12: 41.2107 | P12: 41.3022 | AC12: -0.008 | AD12: -0.002 | AE12: 0.0036 | AF12: 0.0053
D13: 35 | E13: 70.3848 | F13: 37.1061 | G13: 40.0617 | H13: 39.8629 | M13: 70.4616 | N13: 37.1138 | O13: 40.0629 | P13: 39.8673 | AC13: -0.0768 | AD13: -0.0077 | AE13: -0.0012 | AF13: -0.0044
D14: 40 | E14: 37.2032 | F14: 34.3997 | G14: 39.0032 | H14: 38.6115 | M14: 37.3208 | N14: 34.4036 | O14: 39.0101 | P14: 38.6138 | AC14: -0.1176 | AD14: -0.0039 | AE14: -0.0069 | AF14: -0.0023
C15: depth 0 | D15: 34 | E15: 116.3904 | F15: 39.5192 | M15: 116.3512 | N15: 39.5048 | U15: =bdrate($E15:$E18,F15:F18,$M15:$M18,N15:N18) -> 0.001809939027 | AC15: 0.0392 | AD15: 0.0144
D16: 39 | E16: 38.888 | F16: 36.3852 | M16: 38.9408 | N16: 36.3818 | AC16: -0.0528 | AD16: 0.0034
D17: 42 | E17: 16.8 | F17: 33.9101 | M17: 16.788 | N17: 33.9072 | AC17: 0.012 | AD17: 0.0029
D18: 45 | E18: 8.54 | F18: 31.4363 | M18: 8.54 | N18: 31.4363 | AC18: 0 | AD18: 0
C19: depth 1 | D19: 34 | E19: 86.484 | F19: 37.4129 | M19: 86.5536 | N19: 37.4409 | U19: =bdrate($E19:$E22,F19:F22,$M19:$M22,N19:N22) -> -0.007386376489 | AC19: -0.0696 | AD19: -0.028
D20: 39 | E20: 27.9848 | F20: 34.4016 | M20: 27.744 | N20: 34.4026 | AC20: 0.2408 | AD20: -0.001
D21: 42 | E21: 11.9208 | F21: 31.9093 | M21: 11.9416 | N21: 31.9108 | AC21: -0.0208 | AD21: -0.0015
D22: 45 | E22: 5.7912 | F22: 29.3159 | M22: 5.756 | N22: 29.3858 | AC22: 0.0352 | AD22: -0.0699
C23: depth 2 | D23: 34 | E23: 95.5384 | F23: 36.7392 | M23: 95.4712 | N23: 36.7144 | U23: =bdrate($E23:$E26,F23:F26,$M23:$M26,N23:N26) -> 0.004778068815 | AC23: 0.0672 | AD23: 0.0248
D24: 39 | E24: 30.6104 | F24: 33.5867 | M24: 30.7776 | N24: 33.575 | AC24: -0.1672 | AD24: 0.0117
D25: 42 | E25: 13.1688 | F25: 30.9979 | M25: 13.172 | N25: 30.9961 | AC25: -0.0032 | AD25: 0.0018
D26: 45 | E26: 6.3136 | F26: 28.1454 | M26: 6.3296 | N26: 28.1705 | AC26: -0.016 | AD26: -0.0251
C27: syn 0.25 | D27: 25 | F27: 42.3141 | G27: 45.3593 | H27: 45.0843 | N27: 42.3129 | O27: 45.3556 | P27: 45.0839 | AD27: =F27 -N27 -> 0.0012 | AE27: =G27 -O27 -> 0.0037 | AF27: =H27 -P27 -> 0.0004
D28: 30 | F28: 40.1121 | G28: 43.7195 | H28: 43.1339 | N28: 40.1182 | O28: 43.7212 | P28: 43.1271 | AD28: -0.0061 | AE28: -0.0017 | AF28: 0.0068
D29: 35 | F29: 37.613 | G29: 42.0695 | H29: 41.3032 | N29: 37.6138 | O29: 42.0678 | P29: 41.3057 | AD29: -0.0008 | AE29: 0.0017 | AF29: -0.0025
D30: 40 | F30: 34.9377 | G30: 40.7244 | H30: 39.8403 | N30: 34.9464 | O30: 40.7239 | P30: 39.8515 | AD30: -0.0087 | AE30: 0.0005 | AF30: -0.0112
C31: syn 0.50 | D31: 25 | F31: 42.9232 | G31: 45.9575 | H31: 45.765 | N31: 42.9226 | O31: 45.9569 | P31: 45.7678 | AD31: 0.0006 | AE31: 0.0006 | AF31: -0.0028
D32: 30 | F32: 40.6252 | G32: 44.2051 | H32: 43.6944 | N32: 40.632 | O32: 44.2057 | P32: 43.6907 | AD32: -0.0068 | AE32: -0.0006 | AF32: 0.0037
D33: 35 | F33: 38.0432 | G33: 42.3693 | H33: 41.6516 | N33: 38.0448 | O33: 42.3672 | P33: 41.6574 | AD33: -0.0016 | AE33: 0.0021 | AF33: -0.0058
D34: 40 | F34: 35.2776 | G34: 40.9511 | H34: 40.1128 | N34: 35.2815 | O34: 40.9494 | P34: 40.1223 | AD34: -0.0039 | AE34: 0.0017 | AF34: -0.0095
C35: syn 0.75 | D35: 25 | F35: 43.0499 | G35: 45.5767 | H35: 45.6937 | N35: 43.0577 | O35: 45.5797 | P35: 45.6958 | AD35: -0.0078 | AE35: -0.003 | AF35: -0.0021
D36: 30 | F36: 40.9014 | G36: 43.9492 | H36: 43.7105 | N36: 40.9089 | O36: 43.9517 | P36: 43.713 | AD36: -0.0075 | AE36: -0.0025 | AF36: -0.0025
D37: 35 | F37: 38.3411 | G37: 42.1276 | H37: 41.6339 | N37: 38.3436 | O37: 42.128 | P37: 41.6348 | AD37: -0.0025 | AE37: -0.0004 | AF37: -0.0009
D38: 40 | F38: 35.556 | G38: 40.8101 | H38: 40.1175 | N38: 35.5568 | O38: 40.8083 | P38: 40.1178 | AD38: -0.0008 | AE38: 0.0018 | AF38: -0.0003
C39: syn 1.25 | D39: 25 | F39: 42.9443 | G39: 45.5846 | H39: 45.6697 | N39: 42.9515 | O39: 45.5849 | P39: 45.668 | AD39: -0.0072 | AE39: -0.0003 | AF39: 0.0017
D40: 30 | F40: 40.7978 | G40: 43.9553 | H40: 43.6943 | N40: 40.7988 | O40: 43.9524 | P40: 43.6904 | AD40: -0.001 | AE40: 0.0029 | AF40: 0.0039
D41: 35 | F41: 38.2432 | G41: 42.132 | H41: 41.6152 | N41: 38.24 | O41: 42.1383 | P41: 41.6158 | AD41: 0.0032 | AE41: -0.0063 | AF41: -0.0006
D42: 40 | F42: 35.4532 | G42: 40.8059 | H42: 40.0899 | N42: 35.4575 | O42: 40.8087 | P42: 40.086 | AD42: -0.0043 | AE42: -0.0028 | AF42: 0.0039
C43: syn 1.5 | D43: 25 | F43: 42.7479 | G43: 45.8773 | H43: 45.6628 | N43: 42.757 | O43: 45.8796 | P43: 45.6542 | AD43: =F43 -N43 -> -0.0091 | AE43: -0.0023 | AF43: 0.0086
D44: 30 | F44: 40.508 | G44: 44.1325 | H44: 43.5891 | N44: 40.5077 | O44: 44.1328 | P44: 43.5768 | AD44: 0.0003 | AE44: -0.0003 | AF44: 0.0123
D45: 35 | F45: 37.944 | G45: 42.2937 | H45: 41.5348 | N45: 37.9398 | O45: 42.3024 | P45: 41.5474 | AD45: 0.0042 | AE45: -0.0087 | AF45: -0.0126
D46: 40 | F46: 35.1805 | G46: 40.931 | H46: 39.9756 | N46: 35.1863 | O46: 40.9455 | P46: 39.986 | AD46: -0.0058 | AE46: -0.0145 | AF46: -0.0104
C47: syn 1.75 | D47: 25 | F47: 42.081 | G47: 45.1411 | H47: 44.9048 | N47: 42.0881 | O47: 45.1395 | P47: 44.8946 | AD47: -0.0071 | AE47: 0.0016 | AF47: 0.0102
D48: 30 | F48: 39.954 | G48: 43.4783 | H48: 42.9669 | N48: 39.9663 | O48: 43.4827 | P48: 42.9581 | AD48: -0.0123 | AE48: -0.0044 | AF48: 0.0088
D49: 35 | F49: 37.4791 | G49: 41.8467 | H49: 41.1284 | N49: 37.4903 | O49: 41.8563 | P49: 41.1384 | AD49: -0.0112 | AE49: -0.0096 | AF49: -0.01
D50: 40 | F50: 34.8055 | G50: 40.5882 | H50: 39.6603 | N50: 34.8108 | O50: 40.6052 | P50: 39.6706 | AD50: -0.0053 | AE50: -0.017 | AF50: -0.0103
C51: overall | D51: 25 | E51: 1748.8584 | I51: 28719.15 | J51: 46.44 | K51: 331.93 | M51: 1749.1904 | Q51: 28586.66 | R51: 46.33 | S51: 333.85 | Y51: =GEOMEAN(Q51:Q54)/GEOMEAN(I51:I54) -> 0.9958950233 | Z51: =GEOMEAN(R51:R54)/GEOMEAN(J51:J54) -> 0.976936247 | AA51: =GEOMEAN(S51:S54)/GEOMEAN(K51:K54) -> 1.008283158 | AC51: =E51 -M51 -> -0.332 | AG51: =I51 -Q51 -> 132.49 | AH51: 0.11 | AI51: -1.92
D52: 30 | E52: 842.0168 | I52: 22168.12 | J52: 42.01 | K52: 334.69 | M52: 842.4864 | Q52: 22076.94 | R52: 41.74 | S52: 340.95 | AC52: =E52 -M52 -> -0.4696 | AG52: 91.18 | AH52: 0.27 | AI52: -6.26
D53: 35 | E53: 459.1728 | I53: 18913.31 | J53: 41.56 | K53: 333.27 | M53: 459.2816 | Q53: 18870.28 | R53: 40.97 | S53: 340.27 | AC53: =E53 -M53 -> -0.1088 | AG53: 43.03 | AH53: 0.59 | AI53: -7
D54: 40 | E54: 265.1208 | I54: 16719.89 | J54: 39.08 | K54: 336.21 | M54: 265.448 | Q54: 16629.34 | R54: 36.43 | S54: 332.17 | AC54: =E54 -M54 -> -0.3272 | AG54: 90.55 | AH54: 2.65 | AI54: 4.04
A55: 1024x768 | B55: Kendo | C55: video 0 | D55: 25 | E55: 846.2952 | F55: 43.6034 | G55: 44.9589 | H55: 44.9312 | M55: 846.2952 | N55: 43.6034 | O55: 44.9589 | P55: 44.9312 | U55: =bdrate($E55:$E58,F55:F58,$M55:$M58,N55:N58) -> 0 | V55: =bdrate($E55:$E58,G55:G58,$M55:$M58,O55:O58) -> 0 | W55: =bdrate($E55:$E58,H55:H58,$M55:$M58,P55:P58) -> 0 | AC55: =E55 -M55 -> 0 | AD55: =F55 -N55 -> 0 | AE55: 0 | AF55: 0
D56: 30 | E56: 450.7512 | F56: 41.4336 | G56: 44.114 | H56: 43.4513 | M56: 450.7512 | N56: 41.4336 | O56: 44.114 | P56: 43.4513 | AC56: =E56 -M56 -> 0 | AD56: 0 | AE56: 0 | AF56: 0
D57: 35 | E57: 255.928 | F57: 38.9409 | G57: 43.0613 | H57: 41.7765 | M57: 255.928 | N57: 38.9409 | O57: 43.0613 | P57: 41.7765 | AC57: 0 | AD57: 0 | AE57: 0 | AF57: 0
D58: 40 | E58: 153.756 | F58: 36.3252 | G58: 42.2634 | H58: 40.4483 | M58: 153.756 | N58: 36.3252 | O58: 42.2634 | P58: 40.4483 | AC58: 0 | AD58: 0 | AE58: 0 | AF58: 0
C59: video 1 | D59: 25 | E59: 273.2184 | F59: 42.6886 | G59: 44.7334 | H59: 44.1508 | M59: 273.516 | N59: 42.69 | O59: 44.7395 | P59: 44.1538 | U59: =bdrate($E59:$E62,F59:F62,$M59:$M62,N59:N62) -> 0.001208241843 | V59: =bdrate($E59:$E62,G59:G62,$M59:$M62,O59:O62) -> -0.0007163972624 | W59: =bdrate($E59:$E62,H59:H62,$M59:$M62,P59:P62) -> 8.452236751e-05 | AC59: -0.2976 | AD59: -0.0014 | AE59: -0.0061 | AF59: -0.003
D60: 30 | E60: 122.1456 | F60: 40.3608 | G60: 43.8019 | H60: 42.6691 | M60: 122.4552 | N60: 40.3595 | O60: 43.7996 | P60: 42.6689 | AC60: -0.3096 | AD60: 0.0013 | AE60: 0.0023 | AF60: 0.0002
D61: 35 | E61: 63.844 | F61: 37.9179 | G61: 42.8874 | H61: 41.3076 | M61: 63.8856 | N61: 37.9189 | O61: 42.8919 | P61: 41.3121 | AC61: -0.0416 | AD61: -0.001 | AE61: -0.0045 | AF61: -0.0045
D62: 40 | E62: 34.3776 | F62: 35.3738 | G62: 42.0036 | H62: 40.0217 | M62: 34.3216 | N62: 35.369 | O62: 42.0117 | P62: 40.0246 | AC62: 0.056 | AD62: 0.0048 | AE62: -0.0081 | AF62: -0.0029
C63: video 2 | D63: 25 | E63: 290.0352 | F63: 42.3278 | G63: 43.9457 | H63: 43.8937 | M63: 289.7456 | N63: 42.3211 | O63: 43.9422 | P63: 43.8828 | U63: =bdrate($E63:$E66,F63:F66,$M63:$M66,N63:N66) -> 0.001507510025 | V63: =bdrate($E63:$E66,G63:G66,$M63:$M66,O63:O66) -> 0.001224282535 | W63: =bdrate($E63:$E66,H63:H66,$M63:$M66,P63:P66) -> 0.0009053144205 | AC63: 0.2896 | AD63: 0.0067 | AE63: 0.0035 | AF63: 0.0109
D64: 30 | E64: 128.2424 | F64: 40.1114 | G64: 42.9696 | H64: 42.4629 | M64: 128.1472 | N64: 40.1085 | O64: 42.972 | P64: 42.4622 | AC64: 0.0952 | AD64: 0.0029 | AE64: -0.0024 | AF64: 0.0007
D65: 35 | E65: 66.368 | F65: 37.7247 | G65: 42.1931 | H65: 41.2009 | M65: 66.6368 | N65: 37.7286 | O65: 42.187 | P65: 41.2093 | AC65: -0.2688 | AD65: -0.0039 | AE65: 0.0061 | AF65: -0.0084
D66: 40 | E66: 35.1568 | F66: 35.2144 | G66: 41.4019 | H66: 39.9725 | M66: 35.2744 | N66: 35.2269 | O66: 41.4165 | P66: 39.9725 | AC66: -0.1176 | AD66: -0.0125 | AE66: -0.0146 | AF66: 0
C67: depth 0 | D67: 34 | E67: 137.7496 | F67: 39.0562 | M67: 137.808 | N67: 39.0485 | U67: =bdrate($E67:$E70,F67:F70,$M67:$M70,N67:N70) -> 0.001536036799 | AC67: -0.0584 | AD67: 0.0077
D68: 39 | E68: 48.2968 | F68: 35.0202 | M68: 48.2112 | N68: 35.005 | AC68: 0.0856 | AD68: 0.0152
D69: 42 | E69: 20.7832 | F69: 31.991 | M69: 20.7856 | N69: 31.9901 | AC69: -0.0024 | AD69: 0.0009
D70: 45 | E70: 9.9624 | F70: 29.4414 | M70: 9.9624 | N70: 29.4414 | AC70: 0 | AD70: 0
C71: depth 1 | D71: 34 | E71: 107.832 | F71: 36.0457 | M71: 107.3784 | N71: 36.0392 | U71: =bdrate($E71:$E74,F71:F74,$M71:$M74,N71:N74) -> 0.0004498071836 | AC71: 0.4536 | AD71: 0.0065
D72: 39 | E72: 35.2368 | F72: 32.062 | M72: 35.2736 | N72: 32.0634 | AC72: -0.0368 | AD72: -0.0014
D73: 42 | E73: 15.3112 | F73: 29.3727 | M73: 15.2744 | N73: 29.3814 | AC73: 0.0368 | AD73: -0.0087
D74: 45 | E74: 7.3744 | F74: 26.8915 | M74: 7.4368 | N74: 26.8489 | AC74: -0.0624 | AD74: 0.0426
C75: depth 2 | D75: 34 | E75: 125.2816 | F75: 35.1635 | M75: 125.1816 | N75: 35.1687 | U75: =bdrate($E75:$E78,F75:F78,$M75:$M78,N75:N78) -> -0.0006565739196 | AC75: 0.1 | AD75: -0.0052
D76: 39 | E76: 40.424 | F76: 31.3474 | M76: 40.2344 | N76: 31.3427 | AC76: 0.1896 | AD76: 0.0047
D77: 42 | E77: 17.22 | F77: 28.6694 | M77: 17.244 | N77: 28.662 | AC77: -0.024 | AD77: 0.0074
D78: 45 | E78: 8.1872 | F78: 26.0813 | M78: 8.1368 | N78: 26.0568 | AC78: 0.0504 | AD78: 0.0245
C79: syn 0.25 | D79: 25 | F79: 42.766 | G79: 46.9949 | H79: 45.7754 | N79: 42.7638 | O79: 47.0025 | P79: 45.7685 | AD79: 0.0022 | AE79: -0.0076 | AF79: 0.0069
D80: 30 | F80: 40.5215 | G80: 45.8118 | H80: 44.0847 | N80: 40.5196 | O80: 45.8219 | P80: 44.0811 | AD80: 0.0019 | AE80: -0.0101 | AF80: 0.0036
D81: 35 | F81: 38.159 | G81: 44.6477 | H81: 42.4751 | N81: 38.1651 | O81: 44.6597 | P81: 42.4812 | AD81: -0.0061 | AE81: -0.012 | AF81: -0.0061
D82: 40 | F82: 35.6824 | G82: 43.6532 | H82: 41.0538 | N82: 35.6764 | O82: 43.6512 | P82: 41.0618 | AD82: 0.006 | AE82: 0.002 | AF82: -0.008
C83: syn 0.50 | D83: 25 | F83: 43.468 | G83: 47.5882 | H83: 46.6023 | N83: 43.4704 | O83: 47.5928 | P83: 46.5976 | AD83: -0.0024 | AE83: -0.0046 | AF83: 0.0047
D84: 30 | F84: 41.0717 | G84: 46.3193 | H84: 44.7931 | N84: 41.0727 | O84: 46.3214 | P84: 44.7968 | AD84: -0.001 | AE84: -0.0021 | AF84: -0.0037
D85: 35 | F85: 38.5811 | G85: 44.9661 | H85: 42.9681 | N85: 38.5802 | O85: 44.974 | P85: 42.9701 | AD85: 0.0009 | AE85: -0.0079 | AF85: -0.002
D86: 40 | F86: 35.9999 | G86: 43.9072 | H86: 41.451 | N86: 35.998 | O86: 43.9139 | P86: 41.4539 | AD86: 0.0019 | AE86: -0.0067 | AF86: -0.0029
C87: syn 0.75 | D87: 25 | F87: 43.6393 | G87: 47.0419 | H87: 46.5301 | N87: 43.6417 | O87: 47.0445 | P87: 46.5307 | AD87: -0.0024 | AE87: -0.0026 | AF87: -0.0006
D88: 30 | F88: 41.3498 | G88: 45.9929 | H88: 44.8084 | N88: 41.3487 | O88: 45.9919 | P88: 44.8114 | AD88: 0.0011 | AE88: 0.001 | AF88: -0.003
D89: 35 | F89: 38.85 | G89: 44.7104 | H89: 42.954 | N89: 38.852 | O89: 44.7121 | P89: 42.9543 | AD89: -0.002 | AE89: -0.0017 | AF89: -0.0003
D90: 40 | F90: 36.2382 | G90: 43.7656 | H90: 41.4578 | N90: 36.2352 | O90: 43.7648 | P90: 41.456 | AD90: 0.003 | AE90: 0.0008 | AF90: 0.0018
C91: syn 1.25 | D91: 25 | F91: 43.4762 | G91: 47.0318 | H91: 46.5866 | N91: 43.4747 | O91: 47.032 | P91: 46.5836 | AD91: 0.0015 | AE91: -0.0002 | AF91: 0.003
D92: 30 | F92: 41.1929 | G92: 46.0196 | H92: 44.8548 | N92: 41.1925 | O92: 46.0207 | P92: 44.8545 | AD92: 0.0004 | AE92: -0.0011 | AF92: 0.0003
D93: 35 | F93: 38.6985 | G93: 44.7609 | H93: 42.9718 | N93: 38.7048 | O93: 44.7622 | P93: 42.9765 | AD93: -0.0063 | AE93: -0.0013 | AF93: -0.0047
D94: 40 | F94: 36.0836 | G94: 43.7849 | H94: 41.4448 | N94: 36.0904 | O94: 43.7903 | P94: 41.4434 | AD94: -0.0068 | AE94: -0.0054 | AF94: 0.0014
C95: syn 1.5 | D95: 25 | F95: 43.214 | G95: 47.2692 | H95: 46.5876 | N95: 43.2116 | O95: 47.2795 | P95: 46.5841 | AD95: 0.0024 | AE95: -0.0103 | AF95: 0.0035
D96: 30 | F96: 40.8467 | G96: 46.1256 | H96: 44.7539 | N96: 40.8484 | O96: 46.1265 | P96: 44.7606 | AD96: -0.0017 | AE96: -0.0009 | AF96: -0.0067
D97: 35 | F97: 38.3679 | G97: 44.9362 | H97: 42.9642 | N97: 38.3763 | O97: 44.9313 | P97: 42.9737 | AD97: -0.0084 | AE97: 0.0049 | AF97: -0.0095
D98: 40 | F98: 35.7878 | G98: 43.8992 | H98: 41.41 | N98: 35.7952 | O98: 43.9091 | P98: 41.4007 | AD98: -0.0074 | AE98: -0.0099 | AF98: 0.0093
C99: syn 1.75 | D99: 25 | F99: 42.4596 | G99: 46.3208 | H99: 45.7445 | N99: 42.4651 | O99: 46.3251 | P99: 45.7388 | AD99: -0.0055 | AE99: -0.0043 | AF99: 0.0057
D100: 30 | F100: 40.2703 | G100: 45.2017 | H100: 44.031 | N100: 40.2681 | O100: 45.1932 | P100: 44.0335 | AD100: 0.0022 | AE100: 0.0085 | AF100: -0.0025
D101: 35 | F101: 37.9213 | G101: 44.2324 | H101: 42.4662 | N101: 37.928 | O101: 44.2231 | P101: 42.476 | AD101: -0.0067 | AE101: 0.0093 | AF101: -0.0098
D102: 40 | F102: 35.4349 | G102: 43.3031 | H102: 41.0235 | N102: 35.4442 | O102: 43.3206 | P102: 41.0122 | AD102: -0.0093 | AE102: -0.0175 | AF102: 0.0113
C103: overall | D103: 25 | E103: 1786.2024 | I103: 32965.17 | J103: 43.18 | K103: 331.25 | M103: 1785.7152 | Q103: 32979.89 | R103: 43.39 | S103: 337.37 | Y103: =GEOMEAN(Q103:Q106)/GEOMEAN(I103:I106) -> 1.000067797 | Z103: =GEOMEAN(R103:R106)/GEOMEAN(J103:J106) -> 1.022321679 | AA103: =GEOMEAN(S103:S106)/GEOMEAN(K103:K106) -> 1.012048448 | AC103: =E103 -M103 -> 0.4872 | AG103: =I103 -Q103 -> -14.72 | AH103: -0.21 | AI103: -6.12
D104: 30 | E104: 830.8872 | I104: 25426.92 | J104: 39.31 | K104: 333.77 | M104: 830.8632 | Q104: 25516.06 | R104: 43.13 | S104: 336.76 | AC104: =E104 -M104 -> 0.024 | AG104: -89.14 | AH104: -3.82 | AI104: -2.99
D105: 35 | E105: 445.2448 | I105: 21577.01 | J105: 40.75 | K105: 333.53 | M105: 445.5448 | Q105: 21667.62 | R105: 37.38 | S105: 341.28 | AC105: =E105 -M105 -> -0.3 | AG105: -90.61 | AH105: 3.37 | AI105: -7.75
D106: 40 | E106: 254.6048 | I106: 18868.89 | J106: 35.84 | K106: 332.27 | M106: 254.6784 | Q106: 18721.06 | R106: 38.71 | S106: 331.51 | AC106: =E106 -M106 -> -0.0736 | AG106: 147.83 | AH106: -2.87 | AI106: 0.76
A107: 1024x768 | B107: Newspaper_CC | C107: video 0 | D107: 25 | E107: 949.1848 | F107: 41.3563 | G107: 44.1513 | H107: 44.2124 | M107: 949.1848 | N107: 41.3563 | O107: 44.1513 | P107: 44.2124 | U107: =bdrate($E107:$E110,F107:F110,$M107:$M110,N107:N110) -> 0 | V107: =bdrate($E107:$E110,G107:G110,$M107:$M110,O107:O110) -> 0 | W107: =bdrate($E107:$E110,H107:H110,$M107:$M110,P107:P110) -> 0 | AC107: =E107 -M107 -> 0 | AD107: =F107 -N107 -> 0 | AE107: 0 | AF107: 0
D108: 30 | E108: 499.908 | F108: 38.9915 | G108: 42.5219 | H108: 42.5344 | M108: 499.908 | N108: 38.9915 | O108: 42.5219 | P108: 42.5344 | AC108: =E108 -M108 -> 0 | AD108: 0 | AE108: 0 | AF108: 0
D109: 35 | E109: 275.4072 | F109: 36.4516 | G109: 40.7535 | H109: 40.7053 | M109: 275.4072 | N109: 36.4516 | O109: 40.7535 | P109: 40.7053 | AC109: 0 | AD109: 0 | AE109: 0 | AF109: 0
D110: 40 | E110: 159.2904 | F110: 33.8721 | G110: 39.514 | H110: 39.4042 | M110: 159.2904 | N110: 33.8721 | O110: 39.514 | P110: 39.4042 | AC110: 0 | AD110: 0 | AE110: 0 | AF110: 0
C111: video 1 | D111: 25 | E111: 303.988 | F111: 40.3042 | G111: 42.9356 | H111: 43.0617 | M111: 303.9984 | N111: 40.2977 | O111: 42.9507 | P111: 43.0667 | U111: =bdrate($E111:$E114,F111:F114,$M111:$M114,N111:N114) -> 0.001694491577 | V111: =bdrate($E111:$E114,G111:G114,$M111:$M114,O111:O114) -> -0.004469037232 | W111: =bdrate($E111:$E114,H111:H114,$M111:$M114,P111:P114) -> 0.001307412771 | AC111: -0.0104 | AD111: 0.0065 | AE111: -0.0151 | AF111: -0.005
D112: 30 | E112: 128.9672 | F112: 37.9634 | G112: 41.2879 | H112: 41.4371 | M112: 129.2504 | N112: 37.9612 | O112: 41.3078 | P112: 41.437 | AC112: -0.2832 | AD112: 0.0022 | AE112: -0.0199 | AF112: 0.0001
D113: 35 | E113: 63.9848 | F113: 35.5273 | G113: 40.0182 | H113: 40.0615 | M113: 64.04 | N113: 35.5289 | O113: 40.0183 | P113: 40.0573 | AC113: -0.0552 | AD113: -0.0016 | AE113: -0.0001 | AF113: 0.0042
D114: 40 | E114: 34.4592 | F114: 33.1094 | G114: 38.9804 | H114: 38.9515 | M114: 34.512 | N114: 33.1116 | O114: 38.9783 | P114: 38.9587 | AC114: -0.0528 | AD114: -0.0022 | AE114: 0.0021 | AF114: -0.0072
C115: video 2 | D115: 25 | E115: 347.0752 | F115: 39.8973 | G115: 42.8554 | H115: 42.7464 | M115: 348.076 | N115: 39.9006 | O115: 42.8527 | P115: 42.7462 | U115: =bdrate($E115:$E118,F115:F118,$M115:$M118,N115:N118) -> 0.0001013367453 | V115: =bdrate($E115:$E118,G115:G118,$M115:$M118,O115:O118) -> 0.00453559276 | W115: =bdrate($E115:$E118,H115:H118,$M115:$M118,P115:P118) -> 0.003657807126 | AC115: -1.0008 | AD115: -0.0033 | AE115: 0.0027 | AF115: 0.0002
D116: 30 | E116: 149.9624 | F116: 37.522 | G116: 41.3691 | H116: 41.0995 | M116: 149.9792 | N116: 37.5199 | O116: 41.3534 | P116: 41.0883 | AC116: -0.0168 | AD116: 0.0021 | AE116: 0.0157 | AF116: 0.0112
D117: 35 | E117: 75.1472 | F117: 35.0652 | G117: 40.0877 | H117: 39.6738 | M117: 75.0976 | N117: 35.0647 | O117: 40.0846 | P117: 39.672 | AC117: 0.0496 | AD117: 0.0005 | AE117: 0.0031 | AF117: 0.0018
D118: 40 | E118: 39.9696 | F118: 32.55 | G118: 39.0934 | H118: 38.6075 | M118: 39.944 | N118: 32.5529 | O118: 39.0977 | P118: 38.5959 | AC118: 0.0256 | AD118: -0.0029 | AE118: -0.0043 | AF118: 0.0116
C119: depth 0 | D119: 34 | E119: 188.7184 | F119: 38.2932 | M119: 188.4344 | N119: 38.2882 | U119: =bdrate($E119:$E122,F119:F122,$M119:$M122,N119:N122) -> 0.000180883273 | AC119: 0.284 | AD119: 0.005
D120: 39 | E120: 63.496 | F120: 35.0211 | M120: 63.488 | N120: 35.0188 | AC120: 0.008 | AD120: 0.0023
D121: 42 | E121: 26.0056 | F121: 32.4097 | M121: 25.9928 | N121: 32.4091 | AC121: 0.0128 | AD121: 0.0006
D122: 45 | E122: 11.8752 | F122: 29.6752 | M122: 11.8752 | N122: 29.6752 | AC122: 0 | AD122: 0
C123: depth 1 | D123: 34 | E123: 123.7376 | F123: 37.2026 | M123: 123.5504 | N123: 37.1926 | U123: =bdrate($E123:$E126,F123:F126,$M123:$M126,N123:N126) -> 0.005915727623 | AC123: 0.1872 | AD123: 0.01
D124: 39 | E124: 43.7584 | F124: 34.1434 | M124: 44.0904 | N124: 34.1475 | AC124: -0.332 | AD124: -0.0041
D125: 42 | E125: 18.8432 | F125: 31.5575 | M125: 18.812 | N125: 31.5111 | AC125: 0.0312 | AD125: 0.0464
D126: 45 | E126: 8.5784 | F126: 28.5887 | M126: 8.492 | N126: 28.5803 | AC126: 0.0864 | AD126: 0.0084
C127: depth 2 | D127: 34 | E127: 111.2368 | F127: 37.1201 | M127: 111.4648 | N127: 37.145 | U127: =bdrate($E127:$E130,F127:F130,$M127:$M130,N127:N130) -> 0.0049229453 | AC127: -0.228 | AD127: -0.0249
D128: 39 | E128: 36.288 | F128: 34.1614 | M128: 36.4176 | N128: 34.13 | AC128: -0.1296 | AD128: 0.0314
D129: 42 | E129: 15.628 | F129: 31.6541 | M129: 15.6136 | N129: 31.6544 | AC129: 0.0144 | AD129: -0.0003
D130: 45 | E130: 7.5712 | F130: 28.9901 | M130: 7.6376 | N130: 29.0078 | AC130: -0.0664 | AD130: -0.0177
C131: syn 0.25 | D131: 25 | F131: 39.915 | G131: 45.2428 | H131: 45.4318 | N131: 39.9109 | O131: 45.2523 | P131: 45.4346 | AD131: 0.0041 | AE131: -0.0095 | AF131: -0.0028
D132: 30 | F132: 37.7787 | G132: 43.4506 | H132: 43.6244 | N132: 37.7774 | O132: 43.4736 | P132: 43.621 | AD132: 0.0013 | AE132: -0.023 | AF132: 0.0034
D133: 35 | F133: 35.5064 | G133: 41.8652 | H133: 41.9023 | N133: 35.5021 | O133: 41.872 | P133: 41.9035 | AD133: 0.0043 | AE133: -0.0068 | AF133: -0.0012
D134: 40 | F134: 33.1376 | G134: 40.5523 | H134: 40.5346 | N134: 33.139 | O134: 40.5476 | P134: 40.5404 | AD134: -0.0014 | AE134: 0.0047 | AF134: -0.0058
C135: syn 0.50 | D135: 25 | F135: 40.4472 | G135: 46.1019 | H135: 46.1574 | N135: 40.444 | O135: 46.11 | P135: 46.1603 | AD135: 0.0032 | AE135: -0.0081 | AF135: -0.0029
D136: 30 | F136: 38.1815 | G136: 44.224 | H136: 44.238 | N136: 38.1801 | O136: 44.2423 | P136: 44.2354 | AD136: 0.0014 | AE136: -0.0183 | AF136: 0.0026
D137: 35 | F137: 35.7998 | G137: 42.3721 | H137: 42.267 | N137: 35.7974 | O137: 42.3792 | P137: 42.2662 | AD137: 0.0024 | AE137: -0.0071 | AF137: 0.0008
D138: 40 | F138: 33.3316 | G138: 40.9197 | H138: 40.768 | N138: 33.3303 | O138: 40.9121 | P138: 40.773 | AD138: 0.0013 | AE138: 0.0076 | AF138: -0.005
C139: syn 0.75 | D139: 25 | F139: 40.9317 | G139: 46.0167 | H139: 46.0841 | N139: 40.9307 | O139: 46.0198 | P139: 46.0901 | AD139: 0.001 | AE139: -0.0031 | AF139: -0.006
D140: 30 | F140: 38.6539 | G140: 44.2528 | H140: 44.2263 | N140: 38.6492 | O140: 44.259 | P140: 44.2303 | AD140: 0.0047 | AE140: -0.0062 | AF140: -0.004
D141: 35 | F141: 36.193 | G141: 42.314 | H141: 42.1929 | N141: 36.1931 | O141: 42.3201 | P141: 42.1942 | AD141: -0.0001 | AE141: -0.0061 | AF141: -0.0013
D142: 40 | F142: 33.6788 | G142: 40.8563 | H142: 40.7008 | N142: 33.6761 | O142: 40.8533 | P142: 40.7017 | AD142: 0.0027 | AE142: 0.003 | AF142: -0.0009
C143: syn 1.25 | D143: 25 | F143: 40.8763 | G143: 45.867 | H143: 45.9373 | N143: 40.8694 | O143: 45.8675 | P143: 45.9371 | AD143: 0.0069 | AE143: -0.0005 | AF143: 0.0002
D144: 30 | F144: 38.5896 | G144: 44.0645 | H144: 44.0464 | N144: 38.5802 | O144: 44.0612 | P144: 44.038 | AD144: 0.0094 | AE144: 0.0033 | AF144: 0.0084
D145: 35 | F145: 36.1241 | G145: 42.1439 | H145: 41.9758 | N145: 36.1298 | O145: 42.1472 | P145: 41.9778 | AD145: -0.0057 | AE145: -0.0033 | AF145: -0.002
D146: 40 | F146: 33.6006 | G146: 40.7265 | H146: 40.5083 | N146: 33.5992 | O146: 40.7249 | P146: 40.5045 | AD146: 0.0014 | AE146: 0.0016 | AF146: 0.0038
C147: syn 1.5 | D147: 25 | F147: 40.2926 | G147: 45.8953 | H147: 45.8643 | N147: 40.2868 | O147: 45.9015 | P147: 45.8674 | AD147: 0.0058 | AE147: -0.0062 | AF147: -0.0031
D148: 30 | F148: 37.9667 | G148: 44.0515 | H148: 43.8667 | N148: 37.9689 | O148: 44.0432 | P148: 43.8561 | AD148: -0.0022 | AE148: 0.0083 | AF148: 0.0106
D149: 35 | F149: 35.5647 | G149: 42.2142 | H149: 41.847 | N149: 35.5623 | O149: 42.2121 | P149: 41.8547 | AD149: 0.0024 | AE149: 0.0021 | AF149: -0.0077
D150: 40 | F150: 33.0848 | G150: 40.8014 | H150: 40.4008 | N150: 33.0823 | O150: 40.7974 | P150: 40.392 | AD150: 0.0025 | AE150: 0.004 | AF150: 0.0088
C151: syn 1.75 | D151: 25 | F151: 39.9365 | G151: 45.0846 | H151: 45.0464 | N151: 39.945 | O151: 45.0838 | P151: 45.0406 | AD151: -0.0085 | AE151: 0.0008 | AF151: 0.0058
D152: 30 | F152: 37.6095 | G152: 43.3646 | H152: 43.1198 | N152: 37.6072 | O152: 43.3534 | P152: 43.1093 | AD152: 0.0023 | AE152: 0.0112 | AF152: 0.0105
D153: 35 | F153: 35.1943 | G153: 41.7768 | H153: 41.3326 | N153: 35.1922 | O153: 41.7724 | P153: 41.3343 | AD153: 0.0021 | AE153: 0.0044 | AF153: -0.0017
D154: 40 | F154: 32.7033 | G154: 40.5123 | H154: 40.0037 | N154: 32.7049 | O154: 40.5099 | P154: 39.9894 | AD154: -0.0016 | AE154: 0.0024 | AF154: 0.0143
C155: overall | D155: 25 | E155: 2029.7312 | I155: 26854.55 | J155: 39.6 | K155: 332.39 | M155: 2030.4992 | Q155: 26816.91 | R155: 40.32 | S155: 335.32 | Y155: =GEOMEAN(Q155:Q158)/GEOMEAN(I155:I158) -> 1.001343637 | Z155: =GEOMEAN(R155:R158)/GEOMEAN(J155:J158) -> 1.002743793 | AA155: =GEOMEAN(S155:S158)/GEOMEAN(K155:K158) -> 0.9963457651 | AC155: =E155 -M155 -> -0.768 | AG155: =I155 -Q155 -> 37.64 | AH155: -0.72 | AI155: -2.93
D156: 30 | E156: 928.1704 | I156: 21295.02 | J156: 37.28 | K156: 343.37 | M156: 928.924 | Q156: 21289.62 | R156: 36.65 | S156: 341.19 | AC156: =E156 -M156 -> -0.7536 | AG156: 5.4 | AH156: 0.63 | AI156: 2.18
D157: 35 | E157: 480.8064 | I157: 18545.76 | J157: 34.82 | K157: 337.29 | M157: 480.7536 | Q157: 18633.68 | R157: 35.01 | S157: 332.91 | AC157: =E157 -M157 -> 0.0528 | AG157: -87.92 | AH157: -0.19 | AI157: 4.38
D158: 40 | E158: 267.5344 | I158: 16554.37 | J158: 32.94 | K158: 337.35 | M158: 267.5416 | Q158: 16592.45 | R158: 33.09 | S158: 336.01 | AC158: =E158 -M158 -> -0.0072 | AG158: -38.08 | AH158: -0.15 | AI158: 1.34
A159: 1920x1088 | B159: GT_Fly | C159: video 0 | D159: 25 | E159: 3712.888 | F159: 40.2546 | G159: 45.4568 | H159: 46.299 | M159: 3712.888 | N159: 40.2546 | O159: 45.4568 | P159: 46.299 | U159: =bdrate($E159:$E162,F159:F162,$M159:$M162,N159:N162) -> 0 | V159: =bdrate($E159:$E162,G159:G162,$M159:$M162,O159:O162) -> 0 | W159: =bdrate($E159:$E162,H159:H162,$M159:$M162,P159:P162) -> 0 | AC159: =E159 -M159 -> 0 | AD159: =F159 -N159 -> 0 | AE159: 0 | AF159: 0
D160: 30 | E160: 1615.7592 | F160: 37.8197 | G160: 43.6331 | H160: 44.4654 | M160: 1615.7592 | N160: 37.8197 | O160: 43.6331 | P160: 44.4654 | AC160: =E160 -M160 -> 0 | AD160: 0 | AE160: 0 | AF160: 0
D161: 35 | E161: 755.716 | F161: 35.6226 | G161: 41.8003 | H161: 42.6144 | M161: 755.716 | N161: 35.6226 | O161: 41.8003 | P161: 42.6144 | AC161: 0 | AD161: 0 | AE161: 0 | AF161: 0
D162: 40 | E162: 365.3144 | F162: 33.4652 | G162: 40.5644 | H162: 41.4016 | M162: 365.3144 | N162: 33.4652 | O162: 40.5644 | P162: 41.4016 | AC162: 0 | AD162: 0 | AE162: 0 | AF162: 0
C163: video 1 | D163: 25 | E163: 525.236 | F163: 39.7442 | G163: 45.331 | H163: 46.1807 | M163: 525.4272 | N163: 39.7408 | O163: 45.3299 | P163: 46.1798 | U163: =bdrate($E163:$E166,F163:F166,$M163:$M166,N163:N166) -> 0.0009909034779 | V163: =bdrate($E163:$E166,G163:G166,$M163:$M166,O163:O166) -> 0.0008399658562 | W163: =bdrate($E163:$E166,H163:H166,$M163:$M166,P163:P166) -> 0.0009311775182 | AC163: -0.1912 | AD163: 0.0034 | AE163: 0.0011 | AF163: 0.0009
D164: 30 | E164: 183.2104 | F164: 37.4674 | G164: 43.5783 | H164: 44.4171 | M164: 183.0128 | N164: 37.4652 | O164: 43.5769 | P164: 44.4167 | AC164: 0.1976 | AD164: 0.0022 | AE164: 0.0014 | AF164: 0.0004
D165: 35 | E165: 74.748 | F165: 35.3823 | G165: 41.7989 | H165: 42.6265 | M165: 74.9272 | N165: 35.3836 | O165: 41.7989 | P165: 42.6244 | AC165: -0.1792 | AD165: -0.0013 | AE165: 0 | AF165: 0.0021
D166: 40 | E166: 34.3264 | F166: 33.2947 | G166: 40.5629 | H166: 41.4077 | M166: 34.3352 | N166: 33.2933 | O166: 40.5629 | P166: 41.4084 | AC166: -0.0088 | AD166: 0.0014 | AE166: 0 | AF166: -0.0007
C167: video 2 | D167: 25 | E167: 546.284 | F167: 39.7069 | G167: 45.2875 | H167: 46.1444 | M167: 546.7648 | N167: 39.7036 | O167: 45.2866 | P167: 46.1429 | U167: =bdrate($E167:$E170,F167:F170,$M167:$M170,N167:N170) -> 0.001789313703 | V167: =bdrate($E167:$E170,G167:G170,$M167:$M170,O167:O170) -> 0.001486535552 | W167: =bdrate($E167:$E170,H167:H170,$M167:$M170,P167:P170) -> 0.001688643416 | AC167: -0.4808 | AD167: 0.0033 | AE167: 0.0009 | AF167: 0.0015
D168: 30 | E168: 192.5264 | F168: 37.4256 | G168: 43.5349 | H168: 44.3792 | M168: 192.5304 | N168: 37.4247 | O168: 43.535 | P168: 44.3789 | AC168: -0.004 | AD168: 0.0009 | AE168: -0.0001 | AF168: 0.0003
D169: 35 | E169: 78.82 | F169: 35.3362 | G169: 41.7595 | H169: 42.5846 | M169: 79.0704 | N169: 35.3366 | O169: 41.7588 | P169: 42.5837 | AC169: -0.2504 | AD169: -0.0004 | AE169: 0.0007 | AF169: 0.0009
D170: 40 | E170: 36.7856 | F170: 33.2494 | G170: 40.5214 | H170: 41.3692 | M170: 36.8488 | N170: 33.2491 | O170: 40.5224 | P170: 41.3697 | AC170: -0.0632 | AD170: 0.0003 | AE170: -0.001 | AF170: -0.0005
C171: depth 0 | D171: 34 | E171: 283.6152 | F171: 43.406 | M171: 283.4952 | N171: 43.384 | U171: =bdrate($E171:$E174,F171:F174,$M171:$M174,N171:N174) -> 0.004196818266 | AC171: 0.12 | AD171: 0.022
D172: 39 | E172: 96.9784 | F172: 39.3171 | M172: 96.9464 | N172: 39.2799 | AC172: 0.032 | AD172: 0.0372
D173: 42 | E173: 39.86 | F173: 35.4976 | M173: 39.8168 | N173: 35.4944 | AC173: 0.0432 | AD173: 0.0032
D174: 45 | E174: 17.944 | F174: 32.2083 | M174: 17.944 | N174: 32.212 | AC174: 0 | AD174: -0.0037
C175: depth 1 | D175: 34 | E175: 99.088 | F175: 42.4138 | M175: 98.5632 | N175: 42.3921 | U175: =bdrate($E175:$E178,F175:F178,$M175:$M178,N175:N178) -> 0.003711753292 | AC175: 0.5248 | AD175: 0.0217
D176: 39 | E176: 29.0904 | F176: 38.3888 | M176: 28.852 | N176: 38.3466 | AC176: 0.2384 | AD176: 0.0422
D177: 42 | E177: 12.5104 | F177: 34.7191 | M177: 12.5376 | N177: 34.7297 | AC177: -0.0272 | AD177: -0.0106
D178: 45 | E178: 6.1672 | F178: 31.4724 | M178: 6.2768 | N178: 31.4547 | AC178: -0.1096 | AD178: 0.0177
C179: depth 2 | D179: 34 | E179: 102.952 | F179: 42.3405 | M179: 103.1624 | N179: 42.3523 | U179: =bdrate($E179:$E182,F179:F182,$M179:$M182,N179:N182) -> 0.002472961659 | AC179: -0.2104 | AD179: -0.0118
D180: 39 | E180: 30.9008 | F180: 38.3969 | M180: 30.8352 | N180: 38.3717 | AC180: 0.0656 | AD180: 0.0252
D181: 42 | E181: 13.0144 | F181: 34.7787 | M181: 12.9704 | N181: 34.7692 | AC181: 0.044 | AD181: 0.0095
D182: 45 | E182: 6.4688 | F182: 31.6284 | M182: 6.4256 | N182: 31.539 | AC182: 0.0432 | AD182: 0.0894
C183: syn 0.25 | D183: 25 | F183: 39.8383 | G183: 46.5437 | H183: 46.5097 | N183: 39.8364 | O183: 46.5315 | P183: 46.5204 | AD183: 0.0019 | AE183: 0.0122 | AF183: -0.0107
D184: 30 | F184: 37.5858 | G184: 44.7392 | H184: 45.0426 | N184: 37.5915 | O184: 44.7534 | P184: 45.0626 | AD184: -0.0057 | AE184: -0.0142 | AF184: -0.02
D185: 35 | F185: 35.5028 | G185: 42.7738 | H185: 43.3655 | N185: 35.5061 | O185: 42.7806 | P185: 43.397 | AD185: -0.0033 | AE185: -0.0068 | AF185: -0.0315
D186: 40 | F186: 33.4082 | G186: 41.413 | H186: 42.1454 | N186: 33.4086 | O186: 41.4274 | P186: 42.1552 | AD186: -0.0004 | AE186: -0.0144 | AF186: -0.0098
C187: syn 0.50 | D187: 25 | F187: 40.0215 | G187: 46.3278 | H187: 46.7783 | N187: 40.0152 | O187: 46.3237 | P187: 46.7634 | AD187: 0.0063 | AE187: 0.0041 | AF187: 0.0149
D188: 30 | F188: 37.7303 | G188: 44.6699 | H188: 45.1982 | N188: 37.7295 | O188: 44.6694 | P188: 45.2165 | AD188: 0.0008 | AE188: 0.0005 | AF188: -0.0183
D189: 35 | F189: 35.6005 | G189: 42.7935 | H189: 43.4462 | N189: 35.6016 | O189: 42.7861 | P189: 43.441 | AD189: -0.0011 | AE189: 0.0074 | AF189: 0.0052
D190: 40 | F190: 33.4715 | G190: 41.5062 | H190: 42.1682 | N190: 33.4722 | O190: 41.5143 | P190: 42.1766 | AD190: -0.0007 | AE190: -0.0081 | AF190: -0.0084
C191: syn 0.75 | D191: 25 | F191: 40.2713 | G191: 46.9614 | H191: 47.7954 | N191: 40.2711 | O191: 46.9621 | P191: 47.7957 | AD191: 0.0002 | AE191: -0.0007 | AF191: -0.0003
D192: 30 | F192: 37.8647 | G192: 45.0523 | H192: 45.8691 | N192: 37.8647 | O192: 45.0528 | P192: 45.8704 | AD192: 0 | AE192: -0.0005 | AF192: -0.0013
D193: 35 | F193: 35.6689 | G193: 43.0377 | H193: 43.8166 | N193: 35.6698 | O193: 43.0372 | P193: 43.816 | AD193: -0.0009 | AE193: 0.0005 | AF193: 0.0006
D194: 40 | F194: 33.5104 | G194: 41.6608 | H194: 42.4539 | N194: 33.5106 | O194: 41.6601 | P194: 42.4534 | AD194: -0.0002 | AE194: 0.0007 | AF194: 0.0005
C195: syn 1.25 | D195: 25 | F195: 40.2521 | G195: 46.961 | H195: 47.7867 | N195: 40.2523 | O195: 46.9604 | P195: 47.7864 | AD195: -0.0002 | AE195: 0.0006 | AF195: 0.0003
D196: 30 | F196: 37.8453 | G196: 45.0537 | H196: 45.8573 | N196: 37.845 | O196: 45.0523 | P196: 45.8566 | AD196: 0.0003 | AE196: 0.0014 | AF196: 0.0007
D197: 35 | F197: 35.6603 | G197: 43.0309 | H197: 43.8007 | N197: 35.6604 | O197: 43.0306 | P197: 43.7993 | AD197: -0.0001 | AE197: 0.0003 | AF197: 0.0014
D198: 40 | F198: 33.5049 | G198: 41.6507 | H198: 42.4299 | N198: 33.5052 | O198: 41.6495 | P198: 42.4298 | AD198: -0.0003 | AE198: 0.0012 | AF198: 0.0001
C199: syn 1.5 | D199: 25 | F199: 40.0307 | G199: 46.2836 | H199: 47.0058 | N199: 40.0261 | O199: 46.2872 | P199: 47.0187 | AD199: 0.0046 | AE199: -0.0036 | AF199: -0.0129
D200: 30 | F200: 37.6962 | G200: 44.656 | H200: 45.3368 | N200: 37.7081 | O200: 44.6459 | P200: 45.3342 | AD200: -0.0119 | AE200: 0.0101 | AF200: 0.0026
... 419 more rows
